bitfinex/quotes_BTCUSD_20251221
["timestamp","ask_amount","ask_price","bid_price","bid_amount"]
[1766288517749,0.00568,88158.0,88155.0,0.01134365]
[1766288523075,0.27659,88163.0,88156.0,0.01134352]
[1766288523263,0.00568,88160.0,88154.0,0.01134378]
[1766288523444,0.00568,88160.0,88155.0,0.01134365]
[1766288523640,0.00568,88160.0,88154.0,0.01134378]
[1766288523868,0.00568,88160.0,88155.0,0.01134365]
[1766288524402,0.00568,88160.0,88154.0,0.01134378]
[1766288525539,0.00568,88160.0,88155.0,0.01134365]
[1766288529353,0.00568,88160.0,88154.0,0.01134378]
[1766288529667,0.00568,88160.0,88155.0,0.01134365]
[1766288532405,0.00568,88160.0,88154.0,0.01134378]
[1766288534499,0.00568,88160.0,88155.0,0.01134365]
[1766288536195,0.00568,88160.0,88154.0,0.01134378]
[1766288536599,0.00568,88160.0,88155.0,0.01134365]
[1766288537011,0.00568,88160.0,88154.0,0.01134378]
[1766288544928,0.00568,88160.0,88153.0,0.01134391]
[1766288545125,0.00568,88160.0,88154.0,0.01134378]
[1766288545452,0.00568,88160.0,88153.0,0.01134391]
[1766288545766,0.00568,88160.0,88154.0,0.01134378]
[1766288546749,0.00568,88160.0,88155.0,0.01134365]
[1766288549406,0.00568,88160.0,88154.0,0.01134378]
[1766288550039,0.00568,88160.0,88155.0,0.01134365]
[1766288550798,0.00568,88160.0,88154.0,0.01134378]
[1766288551430,0.00568,88160.0,88155.0,0.01134365]
[1766288552845,0.00568,88160.0,88154.0,0.01134378]
[1766288553699,0.00568,88160.0,88155.0,0.01134365]
[1766288554286,0.00568,88160.0,88154.0,0.01134378]
[1766288554640,0.00568,88160.0,88155.0,0.01134365]
[1766288554835,0.00568,88160.0,88154.0,0.01134378]
[1766288556886,0.00568,88160.0,88155.0,0.01134365]
[1766288558137,0.00568,88160.0,88154.0,0.01134378]
[1766288558873,0.00568,88160.0,88155.0,0.01134365]
[1766288559486,0.00568,88160.0,88156.0,0.01134352]
[1766288559887,0.00568,88160.0,88155.0,0.01134365]
[1766288560429,0.00568,88160.0,88156.0,0.01134352]
[1766288560613,0.00568,88160.0,88155.0,0.01134365]
[1766288564756,0.00568,88160.0,88154.0,0.01134378]
[1766288564983,0.00568,88160.0,88155.0,0.01134365]
[1766288571706,0.00568,88160.0,88156.0,0.06806115]
[1766288571995,0.005131,88160.0,88157.0,0.01134339]
[1766288579484,0.005131,88160.0,88156.0,0.01134352]
[1766288579686,0.005131,88160.0,88157.0,0.01134339]
[1766288580662,5e-07,88160.0,88157.0,0.01134339]
[1766288581049,0.03408976,88167.0,88164.0,0.01134249]
[1766288581259,0.00568,88170.0,88165.0,0.01134236]
[1766288581467,0.00568,88170.0,88167.0,0.01134211]
[1766288581862,0.00568,88170.0,88166.0,0.01134224]
[1766288582263,0.000549,88166.0,88164.0,0.12626249]
[1766288582612,0.00568,88170.0,88164.0,0.11492]
[1766288583221,0.00568,88170.0,88164.0,0.12626249]
[1766288584911,0.00568,88170.0,88164.0,0.11492]
[1766288588249,0.00568,88170.0,88163.0,0.01134262]
[1766288589309,0.00568,88170.0,88161.0,0.09080067]
[1766288589913,0.00568,88170.0,88161.0,0.04542927]
[1766288590143,0.00568,88170.0,88162.0,0.01134275]
[1766288591859,0.00568,88170.0,88161.0,0.04542927]
[1766288597204,0.00568,88170.0,88161.0,0.03408639]
[1766288598974,0.00568,88170.0,88162.0,0.01134275]
[1766288599670,0.00568,88170.0,88163.0,0.01134262]
[1766288600515,0.00568,88170.0,88162.0,0.01134275]
[1766288600871,0.00568,88170.0,88163.0,0.01134262]
[1766288601349,0.00568,88170.0,88162.0,0.01134275]
[1766288601525,0.00568,88170.0,88163.0,0.01134262]
[1766288601931,0.00568,88170.0,88162.0,0.01134275]
[1766288602113,0.00568,88170.0,88163.0,0.01134262]
[1766288602454,0.00568,88170.0,88162.0,0.01134275]
[1766288602666,0.00568,88170.0,88163.0,0.01134262]
[1766288603067,0.00568,88170.0,88164.0,0.01134249]
[1766288603411,0.00568,88170.0,88160.0,0.32314602]
[1766288603613,0.001099,88164.0,88160.0,0.32314602]
[1766288603818,0.08181028,88165.0,88160.0,0.00568]
[1766288604030,0.08181028,88165.0,88151.0,0.01134417]
[1766288604031,0.11298,88160.0,88157.0,0.00568]
[1766288604243,0.01134262,88163.0,88148.0,0.00024756]
[1766288604244,0.2343,88159.0,88148.0,0.00024756]
[1766288604484,0.2343,88159.0,88149.0,0.00568]
[1766288604894,0.03408872,88158.0,88149.0,0.00568]
[1766288605613,0.2343,88157.0,88149.0,0.00568]
[1766288605813,0.2343,88157.0,88149.0,0.005131]
[1766288606128,0.03408872,88158.0,88149.0,0.005131]
[1766288606331,0.2343,88157.0,88149.0,0.005131]
[1766288606458,0.01134275,88162.0,88149.0,0.005131]
[1766288606459,0.2343,88161.0,88149.0,0.005131]
[1766288606660,0.005131,88156.0,88149.0,0.005131]
[1766288620447,0.11298,88157.0,88149.0,0.005131]
[1766288620816,0.12432468,88157.0,88149.0,0.005131]
[1766288621639,0.12432468,88157.0,88149.0,0.01647542]
[1766288621855,0.12432468,88157.0,88149.0,0.005131]
[1766288622016,0.12432468,88157.0,88149.0,0.01647542]
[1766288622650,0.01134468,88157.0,88149.0,0.01647542]
[1766288622852,0.01134468,88157.0,88149.0,0.005131]
[1766288627692,0.01134468,88157.0,88149.0,0.01647542]
[1766288628100,0.01134468,88157.0,88151.0,0.01134417]
[1766288628302,0.01134468,88157.0,88150.0,0.01134429]
[1766288628998,0.01134468,88157.0,88151.0,0.01134417]
[1766288629647,0.01134468,88157.0,88152.0,0.01134404]
[1766288629853,0.01134468,88157.0,88153.0,0.01134391]
[1766288630235,0.01134468,88157.0,88151.0,0.01134417]
[1766288631042,0.01134468,88157.0,88152.0,0.01134404]
[1766288631300,0.01134468,88157.0,88153.0,0.01134391]
[1766288631480,0.01079568,88157.0,88153.0,0.01134391]
[1766288631850,0.01079568,88157.0,88154.0,0.01134378]
[1766288632245,0.01079568,88157.0,88153.0,0.01134391]
[1766288632485,0.01079568,88157.0,88151.0,0.01134417]
[1766288632686,0.01079568,88157.0,88152.0,0.01134404]
[1766288633285,0.01079568,88157.0,88150.0,0.01134429]
[1766288633491,0.01079568,88157.0,88151.0,0.01134417]
[1766288634026,0.01079568,88157.0,88150.0,0.01134429]
[1766288634562,0.01079568,88157.0,88151.0,0.01134417]
[1766288634860,0.01079568,88157.0,88150.0,0.01134429]
[1766288635297,0.01079568,88157.0,88151.0,0.01134417]
[1766288636403,0.01079568,88157.0,88152.0,0.01134404]
[1766288637556,0.01079568,88157.0,88150.0,0.01134429]
[1766288637944,0.01079568,88157.0,88154.0,0.01134378]
[1766288638159,0.24723,88164.0,88155.0,0.01134365]
[1766288638601,0.03408872,88160.0,88157.0,0.01134339]
[1766288639121,0.12847,88164.0,88158.0,0.01134327]
[1766288639359,0.01134365,88163.0,88158.0,0.01134327]
[1766288641076,0.01134365,88163.0,88157.0,0.01134339]
[1766288641563,8.137e-05,88172.0,88161.0,0.11492]
[1766288641763,0.03408566,88169.0,88162.0,0.01134275]
[1766288642126,0.03408566,88169.0,88161.0,0.01134288]
[1766288642644,0.03408566,88169.0,88159.0,0.3174733]
[1766288642848,0.000549,88161.0,88159.0,0.3174733]
[1766288643046,0.000549,88161.0,88158.0,0.01702327]
[1766288643269,0.03408566,88169.0,88158.0,0.01702327]
[1766288643450,0.03408566,88169.0,88158.0,0.01498327]
[1766288644707,0.03408566,88169.0,88158.0,0.00364]
[1766288645151,0.03408566,88169.0,88158.0,0.01498327]
[1766288645540,0.24155,88171.0,88158.0,0.01498327]
[1766288645759,0.03408566,88170.0,88158.0,0.01498327]
[1766288645928,0.03408566,88170.0,88158.0,0.00364]
[1766288646135,0.03408566,88170.0,88158.0,0.01498327]
[1766288646339,0.03408566,88170.0,88159.0,0.01134314]
[1766288646544,0.03408566,88170.0,88160.0,0.3174733]
[1766288646925,0.03408566,88170.0,88160.0,0.32881631]
[1766288647864,0.03408566,88170.0,88161.0,0.01134288]
[1766288648022,0.24155,88171.0,88162.0,0.01134275]
[1766288648227,0.27563566,88171.0,88162.0,0.01134275]
[1766288649226,0.27563566,88171.0,88161.0,0.01134288]
[1766288649428,0.27563566,88171.0,88160.0,0.3174733]
[1766288650065,0.24155,88171.0,88162.0,0.01134275]
[1766288650271,0.24155,88171.0,88160.0,0.32881631]
[1766288650468,0.03408566,88170.0,88160.0,0.32881631]
[1766288650672,0.24155,88171.0,88160.0,0.32881631]
[1766288650867,0.27563566,88171.0,88160.0,0.32881631]
[1766288651147,0.27563566,88171.0,88161.0,0.01134288]
[1766288652052,0.27563566,88171.0,88160.0,0.32881631]
[1766288652406,0.27563566,88171.0,88161.0,0.01134288]
[1766288652975,0.00031771,88170.0,88161.0,0.01134288]
[1766288653173,0.00031771,88170.0,88163.0,0.01134262]
[1766288653614,0.00031771,88170.0,88162.0,0.01134275]
[1766288653855,0.00031771,88170.0,88161.0,0.01134288]
[1766288654059,0.00031771,88170.0,88160.0,0.3174733]
[1766288654273,0.00031771,88170.0,88160.0,0.32881631]
[1766288655356,0.00031771,88170.0,88160.0,0.3174733]
[1766288656122,0.00031771,88170.0,88160.0,0.3169243]
[1766288657102,0.12863771,88170.0,88160.0,0.3169243]
[1766288658603,0.16272337,88170.0,88160.0,0.3169243]
[1766288661752,0.00568,88169.0,88160.0,0.3169243]
[1766288662339,0.00568,88169.0,88158.0,0.01498327]
[1766288662512,0.00568,88169.0,88159.0,0.3174733]
[1766288663038,0.00231,88169.0,88159.0,0.3174733]
[1766288663491,0.00231,88169.0,88158.0,0.01498327]
[1766288664924,0.00231,88169.0,88159.0,0.01134314]
[1766288665127,0.00031771,88168.0,88159.0,0.01134314]
[1766288665727,0.00031771,88168.0,88160.0,0.01134301]
[1766288666384,0.00031771,88168.0,88161.0,0.01134288]
[1766288667336,0.00031771,88168.0,88163.0,0.01134262]
[1766288667545,0.00031771,88168.0,88162.0,0.01134275]
[1766288667955,0.00031771,88168.0,88160.0,0.01134301]
[1766288668517,0.00031771,88168.0,88159.0,0.01134314]
[1766288668720,0.00031771,88168.0,88160.0,0.01134301]
[1766288672713,0.00031771,88168.0,88161.0,0.01134288]
[1766288673350,0.00031771,88168.0,88161.0,0.06805726]
[1766288673623,7.1e-07,88168.0,88163.0,0.01134262]
[1766288673835,7.1e-07,88168.0,88162.0,0.01134275]
[1766288674166,7.1e-07,88168.0,88161.0,0.01134288]
[1766288674775,7.1e-07,88168.0,88162.0,0.01134275]
[1766288675193,7.1e-07,88168.0,88160.0,0.01134301]
[1766288675548,7.1e-07,88168.0,88161.0,0.01134288]
[1766288675891,0.01134314,88167.0,88161.0,0.01134288]
[1766288676304,0.01134314,88167.0,88160.0,0.01134301]
[1766288676709,0.01134314,88167.0,88162.0,0.01134275]
[1766288677369,0.01134314,88167.0,88163.0,0.01134262]
[1766288677572,0.01134314,88167.0,88162.0,0.01134275]
[1766288678127,0.01134314,88167.0,88163.0,0.01134262]
[1766288678936,0.01111114,88167.0,88164.0,0.01134249]
[1766288679154,0.01111114,88167.0,88163.0,0.01134262]
[1766288679651,0.01111114,88167.0,88162.0,0.01134275]
[1766288679845,0.01111114,88167.0,88161.0,0.01134288]
[1766288680503,0.01111114,88167.0,88162.0,0.01134275]
[1766288680704,0.01111114,88167.0,88163.0,0.01134262]
[1766288680907,0.01111114,88167.0,88162.0,0.01134275]
[1766288682822,0.01111114,88167.0,88164.0,0.01134249]
[1766288684022,0.01111114,88167.0,88163.0,0.01134262]
[1766288684185,0.01111114,88167.0,88162.0,0.01134275]
[1766288687067,0.01111114,88167.0,88161.0,0.01134288]
[1766288690204,1.14e-06,88167.0,88161.0,0.01134288]
[1766288690404,1.14e-06,88167.0,88162.0,0.12753275]
[1766288691520,1.14e-06,88167.0,88163.0,0.01134262]
[1766288691974,1.14e-06,88167.0,88161.0,0.01134288]
[1766288692180,1.14e-06,88167.0,88162.0,0.01134275]
[1766288692739,1.14e-06,88167.0,88161.0,0.01134288]
[1766288693285,1.14e-06,88167.0,88162.0,0.01134275]
[1766288693464,1.14e-06,88167.0,88161.0,0.01134288]
[1766288694623,1.14e-06,88167.0,88164.0,0.11619]
[1766288694843,0.00231,88169.0,88164.0,0.11619]
[1766288695656,0.00231,88169.0,88165.0,0.01134236]
[1766288696090,0.00231,88169.0,88166.0,0.01134224]
[1766288697911,0.00231,88169.0,88165.0,0.01134236]
[1766288701105,0.000549,88165.0,88163.0,0.01134262]
[1766288701661,0.00231,88169.0,88164.0,0.01134249]
[1766288701861,0.00231,88169.0,88165.0,0.01134236]
[1766288702081,0.00231,88169.0,88164.0,0.01134249]
[1766288702304,0.00231,88169.0,88165.0,0.01134236]
[1766288702616,0.00231,88169.0,88164.0,0.01134249]
[1766288703805,0.00231,88169.0,88163.0,0.01134262]
[1766288704028,0.00055,88163.0,88160.0,0.11619]
[1766288704424,0.00231,88169.0,88160.0,0.11619]
[1766288705165,0.00231,88169.0,88160.0,0.115641]
[1766288706018,0.00231,88169.0,88159.0,0.00454475]
[1766288706371,0.00231,88169.0,88159.0,0.01588789]
[1766288706894,0.00231,88169.0,88158.0,0.01498327]
[1766288707123,0.00231,88169.0,88160.0,0.01588789]
[1766288718879,0.00231,88169.0,88160.0,0.0272309]
[1766288719409,0.00231,88169.0,88160.0,0.01134301]
[1766288719639,0.00231,88169.0,88161.0,0.0272309]
[1766288721888,8.137e-05,88172.0,88169.0,0.116189]
[1766288722234,1.37e-06,88172.0,88169.0,0.11564]
[1766288722385,1.37e-06,88172.0,88168.0,0.08181028]
[1766288723789,1.37e-06,88172.0,88168.0,0.09315226]
[1766288724001,1.37e-06,88172.0,88169.0,0.01134185]
[1766288724337,1.37e-06,88172.0,88168.0,0.09315226]
[1766288724582,1.37e-06,88172.0,88169.0,0.01134185]
[1766288725015,1.37e-06,88172.0,88168.0,0.09315226]
[1766288725229,1.37e-06,88172.0,88169.0,0.01134185]
[1766288729147,1.37e-06,88172.0,88168.0,0.09315226]
[1766288730090,1.37e-06,88172.0,88169.0,0.01134185]
[1766288730232,1.37e-06,88172.0,88168.0,0.09315226]
[1766288730432,1.37e-06,88172.0,88169.0,0.01134185]
[1766288732543,1.37e-06,88172.0,88169.0,0.06805107]
[1766288737487,1.37e-06,88172.0,88171.0,0.17234798]
[1766288738267,1.37e-06,88172.0,88171.0,0.20642934]
[1766288739307,1.37e-06,88172.0,88171.0,0.03408136]
[1766288740889,1.37e-06,88172.0,88171.0,0.03353136]
[1766288740997,1.37e-06,88172.0,88166.0,0.03625033]
[1766288741207,1.37e-06,88172.0,88167.0,0.08181028]
[1766288742229,1.37e-06,88172.0,88167.0,0.09315239]
[1766288742631,1.37e-06,88172.0,88168.0,0.04542334]
[1766288742845,1.37e-06,88172.0,88168.0,0.03408136]
[1766288743277,1.37e-06,88172.0,88168.0,0.04542334]
[1766288744147,1.37e-06,88172.0,88168.0,0.03408136]
[1766288749864,1.37e-06,88172.0,88168.0,0.04542334]
[1766288751528,1.37e-06,88172.0,88169.0,0.01134185]
[1766288752806,1.37e-06,88172.0,88168.0,0.04542334]
[1766288754685,1.37e-06,88172.0,88169.0,0.01134185]
[1766288754881,1.37e-06,88172.0,88168.0,0.04542334]
[1766288755307,1.37e-06,88172.0,88169.0,0.01134185]
[1766288757727,1.37e-06,88172.0,88169.0,0.06805081]
[1766288759086,1.37e-06,88172.0,88169.0,0.01134185]
[1766288759702,1.37e-06,88172.0,88169.0,0.06805089]
[1766288760845,1.37e-06,88172.0,88169.0,0.01134185]
[1766288761187,1.37e-06,88172.0,88168.0,0.06465169]
[1766288761409,1.37e-06,88172.0,88169.0,0.01134185]
[1766288761835,1.37e-06,88172.0,88168.0,0.06465169]
[1766288767371,1.37e-06,88172.0,88169.0,0.03057033]
[1766288770087,1.37e-06,88172.0,88169.0,0.04191218]
[1766288770297,1.37e-06,88172.0,88169.0,0.03057033]
[1766288771552,1.37e-06,88172.0,88169.0,0.04191218]
[1766288772119,1.37e-06,88172.0,88169.0,0.03057033]
[1766288772972,1.37e-06,88172.0,88169.0,0.04191218]
[1766288773212,1.37e-06,88172.0,88169.0,0.03057033]
[1766288773550,1.37e-06,88172.0,88169.0,0.04191218]
[1766288774177,1.37e-06,88172.0,88169.0,0.03057033]
[1766288779450,1.37e-06,88172.0,88169.0,0.04191218]
[1766288780255,1.37e-06,88172.0,88169.0,0.03057033]
[1766288781267,1.37e-06,88172.0,88169.0,0.04191218]
[1766288781658,1.37e-06,88172.0,88169.0,0.03057033]
[1766288781904,1.37e-06,88172.0,88169.0,0.04191218]
[1766288782249,1.37e-06,88172.0,88169.0,0.03057033]
[1766288783360,1.37e-06,88172.0,88169.0,0.04191218]
[1766288784360,1.37e-06,88172.0,88169.0,0.03057033]
[1766288785235,1.37e-06,88172.0,88169.0,0.04191218]
[1766288785446,1.37e-06,88172.0,88170.0,0.11418]
[1766288785650,1.37e-06,88172.0,88171.0,0.00568]
[1766288829621,1.37e-06,88172.0,88169.0,0.01168022]
[1766288829853,0.12012137,88172.0,88171.0,0.00568]
[1766288830228,1.37e-06,88172.0,88171.0,0.00568]
[1766288832021,1.37e-06,88172.0,88169.0,0.00568]
[1766288844330,1.37e-06,88172.0,88166.0,0.01134224]
[1766288844565,1.37e-06,88172.0,88169.0,0.00568]
[1766288846203,1.37e-06,88172.0,88169.0,0.0737306]
[1766288846400,1.37e-06,88172.0,88170.0,0.05670811]
[1766288853012,1.37e-06,88172.0,88169.0,0.0737306]
[1766288857240,1.37e-06,88172.0,88170.0,0.05670799]
[1766288860814,1.37e-06,88172.0,88169.0,0.01702185]
[1766288864248,1.37e-06,88172.0,88169.0,0.07373073]
[1766288865202,1.37e-06,88172.0,88169.0,0.00568]
[1766288865401,1.37e-06,88172.0,88169.0,0.01702185]
[1766288870573,1.37e-06,88172.0,88169.0,0.07373066]
[1766288870761,1.37e-06,88172.0,88169.0,0.01702185]
[1766288872200,1.37e-06,88172.0,88169.0,0.07373104]
[1766288878716,1.37e-06,88172.0,88169.0,0.01702185]
[1766288881873,1.37e-06,88172.0,88169.0,0.07373052]
[1766288882087,0.22675966,88200.0,88178.0,0.05670348]
[1766288882088,0.12412,88191.0,88178.0,0.05670348]
[1766288882301,0.00568,88190.0,88182.0,0.07258581]
[1766288882715,0.00568,88190.0,88183.0,0.01134005]
[1766288882824,0.00568,88190.0,88182.0,0.07258581]
[1766288885657,0.00568,88190.0,88181.0,0.07258581]
[1766288893567,0.12064,88189.0,88178.0,0.00568]
[1766288893782,0.24391,88189.0,88180.0,0.31743319]
[1766288901677,0.00568,88190.0,88177.0,0.07258581]
[1766288901904,0.24391,88189.0,88174.0,0.03060446]
[1766288902146,0.12064,88186.0,88174.0,4.46e-06]
[1766288902344,0.12064,88181.0,88173.0,0.01702134]
[1766288902492,0.12064,88179.0,88173.0,0.01702134]
[1766288902694,0.120091,88179.0,88174.0,0.01134121]
[1766288902870,0.120091,88179.0,88173.0,0.01702134]
[1766288903083,0.120091,88179.0,88174.0,0.01134121]
[1766288903262,0.120091,88179.0,88173.0,0.01702134]
[1766288903484,0.120091,88179.0,88174.0,0.01134121]
[1766288904828,0.120091,88179.0,88175.0,0.01134108]
[1766288905015,0.120091,88179.0,88174.0,0.01134121]
[1766288905411,0.12327,88180.0,88174.0,0.01134121]
[1766288905618,0.12327,88180.0,88175.0,0.01134108]
[1766288906320,0.12327,88180.0,88174.0,0.01134121]
[1766288906836,0.12327,88180.0,88175.0,0.01134108]
[1766288907470,0.12327,88180.0,88174.0,0.01134121]
[1766288907668,0.12327,88180.0,88175.0,0.01134108]
[1766288909661,0.12327,88180.0,88174.0,0.01134121]
[1766288910599,0.12327,88180.0,88175.0,0.01134108]
[1766288913155,0.12327,88180.0,88173.0,0.01134134]
[1766288913354,0.12327,88180.0,88172.0,0.01702146]
[1766288913536,0.12327,88180.0,88173.0,0.01134134]
[1766288913784,0.12327,88180.0,88174.0,0.01134121]
[1766288914999,0.12327,88180.0,88173.0,0.01134134]
[1766288916874,0.12327,88180.0,88172.0,0.01702146]
[1766288917077,0.12327,88180.0,88173.0,0.01134134]
[1766288917860,0.12327,88180.0,88172.0,0.00568]
[1766288918069,0.12327,88180.0,88172.0,0.0737283]
[1766288918267,0.12327,88180.0,88174.0,0.01134121]
[1766288918475,0.12327,88180.0,88175.0,0.01134108]
[1766288918900,0.12327,88180.0,88174.0,0.01134121]
[1766288919455,0.12327,88180.0,88173.0,0.01134134]
[1766288921975,0.00568,88185.0,88174.0,0.01134121]
[1766288922426,0.12939,88185.0,88175.0,0.01134108]
[1766288922605,0.24216,88184.0,88175.0,0.01134108]
[1766288922804,0.12371,88183.0,88175.0,0.01134108]
[1766288923841,0.12371,88183.0,88176.0,0.01134095]
[1766288924039,0.12371,88183.0,88177.0,0.01134082]
[1766288924268,0.00568,88185.0,88178.0,0.0839265]
[1766288924589,0.00568,88185.0,88179.0,0.01134056]
[1766288924739,0.00568,88185.0,88178.0,0.0839265]
[1766288924960,0.01134134,88187.0,88182.0,0.01134018]
[1766288925163,0.01134134,88187.0,88183.0,0.01134005]
[1766288927017,0.01134134,88187.0,88181.0,0.01134031]
[1766288927299,0.01134134,88187.0,88180.0,0.01134044]
[1766288931257,0.01134134,88187.0,88179.0,0.01134056]
[1766288931482,0.01134134,88187.0,88180.0,0.01134044]
[1766288934369,0.01134134,88187.0,88181.0,0.01134031]
[1766288934995,0.01134134,88187.0,88180.0,0.01134044]
[1766288935735,0.01134134,88187.0,88181.0,0.01134031]
[1766288936765,0.01134134,88187.0,88182.0,0.01134018]
[1766288936927,0.01134134,88187.0,88181.0,0.01134031]
[1766288939492,0.01134134,88187.0,88182.0,0.01134018]
[1766288940215,0.01134134,88187.0,88181.0,0.01134031]
[1766288940999,0.01134134,88187.0,88180.0,0.01134044]
[1766288941255,0.01134134,88187.0,88181.0,0.01134031]
[1766288941740,0.01134134,88187.0,88182.0,0.01134018]
[1766288941911,0.01134134,88187.0,88181.0,0.01134031]
[1766288942233,0.01134134,88187.0,88182.0,0.01134018]
[1766288942464,0.01134134,88187.0,88180.0,0.01134044]
[1766288943790,0.01134134,88187.0,88181.0,0.01134031]
[1766288949728,0.000549,88181.0,88180.0,0.01134044]
[1766288949920,0.000549,88181.0,88178.0,0.0896065]
[1766288950128,0.01134134,88187.0,88178.0,0.0896065]
[1766288950272,0.01134134,88187.0,88178.0,0.07826581]
[1766288950446,0.01134134,88187.0,88180.0,0.01134044]
[1766288950644,0.001099,88180.0,88178.0,4.4e-07]
[1766288951342,0.23848,88182.0,88178.0,4.4e-07]
[1766288952583,0.23848,88182.0,88170.0,0.01134172]
[1766288952781,0.23848,88182.0,88174.0,0.00568]
[1766288953065,0.01133966,88186.0,88174.0,0.00568]
[1766288953197,0.11612,88184.0,88174.0,0.00568]
[1766288953398,0.12236,88182.0,88174.0,0.00568]
[1766288953708,0.23848,88182.0,88174.0,0.00568]
[1766288974941,0.23524967,88182.0,88174.0,0.00568]
[1766288976052,0.23398267,88182.0,88174.0,0.00568]
[1766288991923,0.11786267,88182.0,88174.0,0.00568]
[1766288992094,0.11786267,88182.0,88175.0,0.01134108]
[1766288992348,0.11786267,88182.0,88174.0,0.01702121]
[1766288992731,0.11786267,88182.0,88175.0,0.01134108]
[1766288993416,0.0001,88194.0,88180.0,0.01134044]
[1766288993624,0.00045882,88194.0,88184.0,0.11053]
[1766288993827,0.00045882,88194.0,88181.0,0.00568]
[1766288994434,0.00045882,88194.0,88181.0,0.01702031]
[1766288994799,0.00045882,88194.0,88181.0,0.05109574]
[1766288994999,0.00045882,88194.0,88183.0,0.01134005]
[1766288995219,0.00045882,88194.0,88182.0,0.01134018]
[1766288996382,0.00045882,88194.0,88183.0,0.01134005]
[1766288996751,0.00045882,88194.0,88185.0,0.01133979]
[1766288997337,0.00045882,88194.0,88186.0,0.01133966]
[1766288997540,0.00045882,88194.0,88185.0,0.01133979]
[1766288997872,0.00045882,88194.0,88186.0,0.01133966]
[1766288998670,0.00045882,88194.0,88184.0,0.01133992]
[1766288998873,0.00045882,88194.0,88183.0,0.02268023]
[1766288999928,0.00045882,88194.0,88183.0,0.01134018]
[1766289000551,0.00045882,88194.0,88183.0,0.02268023]
[1766289001248,0.00045882,88194.0,88183.0,0.01134018]
[1766289001712,0.1154,88191.0,88183.0,0.01134018]
[1766289002123,0.1154,88191.0,88178.0,0.00568]
[1766289002124,0.1154,88185.0,88178.0,0.00568]
[1766289002333,0.22828,88182.0,88178.0,0.00568]
[1766289002533,0.22828,88182.0,88175.0,0.00568]
[1766289002799,0.1154,88182.0,88175.0,0.00568]
[1766289003017,0.1154,88182.0,88177.0,0.01134082]
[1766289003206,0.11288,88187.0,88177.0,0.01134082]
[1766289003433,0.22828,88187.0,88177.0,0.01134082]
[1766289004950,0.22828,88187.0,88176.0,0.08392676]
[1766289005351,0.22828,88187.0,88177.0,0.01134082]
[1766289006161,0.22828,88187.0,88176.0,0.08392676]
[1766289006360,0.22828,88187.0,88177.0,0.01134082]
[1766289006562,0.22828,88187.0,88176.0,0.07258581]
[1766289007191,0.22828,88187.0,88176.0,0.08392676]
[1766289007704,0.22828,88187.0,88176.0,0.07258581]
[1766289008337,0.22828,88187.0,88176.0,0.08392676]
[1766289009592,0.22828,88187.0,88176.0,0.07258581]
[1766289010705,0.22828,88187.0,88176.0,0.08392676]
[1766289011092,0.22828,88187.0,88177.0,0.03061238]
[1766289011298,0.22828,88187.0,88179.0,0.01134056]
[1766289011517,0.22828,88187.0,88177.0,0.03061238]
[1766289011717,0.00055,88179.0,88177.0,0.03061238]
[1766289011958,0.24314,88184.0,88175.0,0.00568]
[1766289012350,0.24314,88184.0,88176.0,0.01134095]
[1766289012727,0.24314,88184.0,88175.0,0.01702108]
[1766289013232,0.24314,88184.0,88175.0,0.00568]
[1766289018060,0.24314,88184.0,88175.0,0.01702108]
[1766289018643,0.24314,88184.0,88176.0,0.01134095]
[1766289018786,0.24314,88184.0,88175.0,0.01702108]
[1766289018986,0.24314,88184.0,88175.0,0.00568]
[1766289019187,0.24314,88184.0,88175.0,0.01702108]
[1766289020311,0.12342,88184.0,88175.0,0.01702108]
[1766289022695,0.12342,88184.0,88176.0,0.01134095]
[1766289023535,0.12342,88184.0,88177.0,0.01134082]
[1766289024002,0.12342,88184.0,88176.0,0.01134095]
[1766289029860,0.12342,88184.0,88177.0,0.01134082]
[1766289033299,0.12342,88184.0,88176.0,0.01134095]
[1766289034275,0.12342,88184.0,88177.0,0.01134082]
[1766289038074,0.12342,88184.0,88178.0,0.01134069]
[1766289038598,0.12342,88184.0,88179.0,0.01134056]
[1766289038795,0.12342,88184.0,88178.0,0.01134069]
[1766289039021,0.11972,88188.0,88179.0,0.01134056]
[1766289039374,0.11972,88188.0,88177.0,0.01134082]
[1766289039580,0.11972,88188.0,88178.0,0.01134069]
[1766289042205,0.11972,88188.0,88176.0,0.08392676]
[1766289042510,0.23263,88188.0,88176.0,0.08392676]
[1766289042708,0.23263,88188.0,88177.0,0.01134082]
[1766289043134,0.23263,88188.0,88176.0,0.08392676]
[1766289043570,0.23263,88188.0,88175.0,0.00568]
[1766289044814,0.23263,88188.0,88175.0,0.01702108]
[1766289045294,0.11972,88188.0,88175.0,0.01702108]
[1766289045496,0.11291,88187.0,88175.0,0.01702108]
[1766289045694,0.11291,88187.0,88175.0,0.00568]
[1766289047339,0.11291,88187.0,88175.0,0.01702108]
[1766289049052,0.11291,88187.0,88176.0,0.01134095]
[1766289049528,0.11291,88187.0,88176.0,0.0680454]
[1766289049714,0.11291,88187.0,88179.0,0.01134056]
[1766289049890,0.11291,88187.0,88178.0,0.01134069]
[1766289050102,0.11291,88187.0,88179.0,0.01134056]
[1766289050684,0.11291,88187.0,88180.0,0.01134044]
[1766289051093,0.11291,88187.0,88179.0,0.01134056]
[1766289051514,0.11291,88187.0,88178.0,0.01134069]
[1766289051866,0.11291,88187.0,88179.0,0.01134056]
[1766289052462,0.11291,88187.0,88180.0,0.01134044]
[1766289052589,0.11291,88187.0,88181.0,0.01134031]
[1766289052793,0.11291,88187.0,88182.0,0.01134018]
[1766289053788,0.11291,88187.0,88183.0,0.01134005]
[1766289055425,0.01702044,88191.0,88183.0,0.01134005]
[1766289055633,0.25199044,88191.0,88183.0,0.01134005]
[1766289058309,0.25199044,88191.0,88182.0,0.01134018]
[1766289059009,0.25190289,88191.0,88182.0,0.01134018]
[1766289061625,0.25190289,88191.0,88183.0,0.01134005]
[1766289062363,0.25190289,88191.0,88182.0,0.01134018]
[1766289062565,0.25190289,88191.0,88181.0,0.01134031]
[1766289062765,0.25190289,88191.0,88183.0,0.01134005]
[1766289062913,0.25190289,88191.0,88182.0,0.01134018]
[1766289065329,0.13899289,88191.0,88182.0,0.01134018]
[1766289065480,0.1241,88190.0,88182.0,0.01134018]
[1766289068109,0.1241,88190.0,88181.0,0.01134031]
[1766289068317,0.1241,88190.0,88182.0,0.01134018]
[1766289070116,0.1241,88190.0,88183.0,0.01134005]
[1766289070318,0.1241,88190.0,88182.0,0.01134018]
[1766289070595,0.1241,88190.0,88183.0,0.01134005]
[1766289070899,0.1241,88190.0,88182.0,0.01134018]
[1766289071878,0.1241,88190.0,88183.0,0.01134005]
[1766289072316,0.1241,88190.0,88182.0,0.01134018]
[1766289072691,0.01134031,88189.0,88183.0,0.01134005]
[1766289073789,0.01134031,88189.0,88182.0,0.01134018]